[Event "12th Chennai Open 2020"]
[Site "Chennai"]
[Date "2020.01.19"]
[Round "1.3"]
[White "Pantsulaia, Levan"]
[Black "Sahib Singh"]
[Result "1-0"]
[ECO "A13"]
[WhiteElo "2598"]
[BlackElo "1699"]
[Annotator "RC"]
[PlyCount "81"]
[EventDate "2020.01.19"]
[EventType "swiss"]
[EventCountry "IND"]
[SourceTitle "playchess.com"]
[Source "ChessBase"]
[SourceQuality "1"]
[TimeControl "5400+30"]

1. c4 {[%emt 1:30:30]} e6 {[%emt 1:30:30]} 2. g3 {[%emt 0:00:30]} Nf6 {[%emt 0:00:30]} 3. Bg2 {[%emt 0:00:30]} d5 {[%emt 0:00:30]} 4. Nf3 {[%emt 0:00:30]} dxc4 {[%emt 0:00:30]} 5. O-O {[%emt 0:00:30]} Nc6 {[%emt 0:00:30]} 6. Qa4 {[%emt 0:00:30]} Bd7 {[%emt 0:00:30]} 7. Qxc4 {[%emt 0:00:30]} Bd6 {[%emt 0:00:30]} 8. d4 {[%emt 0:00:30]} Rb8 {[%emt 0:00:30]} 9. Nc3 O-O {[%emt 0:00:30]} 10. Rd1 b5 {[%emt 0:00:30]} 11. Qd3 b4 {[%emt 0:00:30]} 12. Ne4 Nxe4 13. Qxe4 Ne7 {[%emt 0:01:00]} 14. Qc2 a5 {[%emt 0:00:30]} 15. e4 {[%emt 0:03:30]} c6 {[%emt 0:00:30]} 16. e5 Bc7 {[%emt 0:00:30]} 17. Ng5 Ng6 18. Be4 h6 19. Nxf7 Rxf7 20. Bxg6 Rf8 21. Be3 Be8 22. Rac1 Rc8 23. Bxe8 Rxe8 24. Qxc6 Bb6 {[%emt 0:04:00]} 25. Qb5 Rxc1 26. Rxc1 Re7 27. Rc6 Bc7 28. Qc4 Qd7 29. Ra6 Kh7 30. Qc2+ g6 31. h4 h5 32. Bg5 Re8 33. Ra7 Rc8 34. Bf6 a4 35. b3 axb3 36. axb3 Qf7 37. Kh2 Kh6 38. Qc6 Kh7 39. Kg1 Kh6 40. Kg2 Kh7 41. Bd8 1-0

[Event "12th Chennai Open 2020"]
[Site "Chennai"]
[Date "2020.01.19"]
[Round "1.5"]
[White "Goganov, Aleksey"]
[Black "Abhinav, Chakrapani Santhalay"]
[Result "1-0"]
[ECO "E04"]
[WhiteElo "2583"]
[BlackElo "1688"]
[Annotator "RC"]
[PlyCount "77"]
[EventDate "2020.01.19"]
[EventType "swiss"]
[EventCountry "IND"]
[SourceTitle "playchess.com"]
[Source "ChessBase"]
[SourceQuality "1"]
[TimeControl "5400+30"]

1. d4 {[%emt 0:00:00]} d5 {[%emt 0:00:00]} 2. c4 {[%emt 0:00:00]} e6 {[%emt 0:00:28]} 3. Nf3 {[%emt 0:00:00]} Nf6 {[%emt 0:01:27]} 4. g3 {[%emt 0:00:00]} dxc4 {[%emt 0:09:28]} 5. Bg2 {[%emt 0:00:00]} a6 {[%emt 0:04:13]} 6. O-O {[%emt 0:01:39]} Nc6 {[%emt 0:06:44]} 7. e3 {[%emt 0:00:28]} Bd7 {[%emt 0:02:54]} 8. Qe2 {[%emt 0:00:33]} b5 {[%emt 0:05:41]} 9. b3 {[%emt 0:00:25]} cxb3 {[%emt 0:04:01]} 10. axb3 {[%emt 0:00:07]} Bd6 {[%emt 0:07:38]} 11. Bb2 {[%emt 0:02:06]} O-O {[%emt 0:03:19]} 12. e4 {[%emt 0:02:35]} Be7 {[%emt 0:07:36]} 13. Nc3 {[%emt 0:02:33]} Nb4 {[%emt 0:08:07]} 14. Rfd1 {[%emt 0:05:20]} c6 {[%emt 0:11:49]} 15. Ne5 {[%emt 0:04:33]} Qc7 {[%emt 0:06:56]} 16. Rac1 {[%emt 0:00:32]} Rfd8 {[%emt 0:02:55]} 17. h4 {[%emt 1:17:39]} Be8 {[%emt 0:01:53]} 18. Ng4 {[%emt 0:00:00]} Qb6 {[%emt 0:07:28]} 19. Nxf6+ {[%emt 0:00:00]} Bxf6 {[%emt 0:00:16]} 20. e5 {[%emt 0:00:00]} Be7 {[%emt 0:00:20]} 21. Ne4 {[%emt 0:00:00]} a5 {[%emt 0:02:11]} 22. Qg4 {[%emt 0:00:00]} Nd5 {[%emt 0:01:32]} 23. Nc5 {[%emt 0:00:00]} Bxc5 {[%emt 0:02:51]} 24. dxc5 {[%emt 0:00:00]} Qb7 {[%emt 0:00:33]} 25. h5 {[%emt 0:00:00]} h6 {[%emt 0:00:48]} 26. Ra1 {[%emt 0:00:00]} a4 {[%emt 0:00:31]} 27. b4 {[%emt 0:00:00]} Ne7 {[%emt 0:00:57]} 28. Rd6 {[%emt 0:00:00]} Nf5 {[%emt 0:00:29]} 29. Ra3 {[%emt 0:00:00]} Qc7 {[%emt 0:00:51]} 30. Be4 {[%emt 0:00:00]} Ne7 {[%emt 0:00:29]} 31. Bc1 {[%emt 0:00:00]} Kh8 {[%emt 0:00:25]} 32. Bb1 {[%emt 0:00:00]} Bd7 {[%emt 0:00:36]} 33. Qe4 {[%emt 0:00:00]} g6 {[%emt 0:00:31]} 34. Bxh6 {[%emt 0:00:00]} Nf5 {[%emt 0:00:17]} 35. Bg5 {[%emt 0:00:00]} Re8 {[%emt 0:00:35]} 36. Bf6+ {[%emt 0:00:00]} Kh7 {[%emt 0:00:26]} 37. g4 {[%emt 0:00:00]} Ne7 {[%emt 0:00:13]} 38. hxg6+ {[%emt 0:00:00]} fxg6 {[%emt 0:00:17]} 39. Qh1+ {[%emt 0:00:00]} 1-0

[Event "12th Chennai Open 2020"]
[Site "Chennai"]
[Date "2020.01.19"]
[Round "2.9"]
[White "Sri Sai Baswanth P"]
[Black "David, Alberto"]
[Result "1/2-1/2"]
[ECO "A21"]
[WhiteElo "2008"]
[BlackElo "2562"]
[Annotator "ChessBase"]
[PlyCount "164"]
[EventDate "2020.01.19"]
[EventType "swiss"]
[EventCountry "IND"]
[SourceTitle "playchess.com"]
[Source "ChessBase"]
[SourceQuality "1"]
[TimeControl "5400+30"]

1. c4 {[%emt 0:06:04]} e5 {[%emt 0:00:33]} 2. g3 {[%emt 0:00:06]} c6 {[%emt 0:01:42]} 3. Nf3 {[%emt 0:00:08]} d6 {[%emt 0:01:13]} 4. Nc3 {[%emt 0:00:08]} Nd7 {[%emt 0:00:32]} 5. Bg2 {[%emt 0:01:31]} Ngf6 {[%emt 0:00:37]} 6. e4 {[%emt 0:01:33]} a6 {[%emt 0:00:26]} 7. O-O {[%emt 0:01:14]} b5 {[%emt 0:01:33]} 8. d4 {[%emt 0:01:01]} Bb7 {[%emt 0:02:08]} 9. Qe2 {[%emt 0:04:16]} Be7 {[%emt 0:03:37]} 10. Rd1 {[%emt 0:01:01]} Qb8 {[%emt 0:03:07]} 11. c5 {[%emt 0:05:50]} O-O {[%emt 0:05:44]} 12. cxd6 {[%emt 0:12:36]} Bxd6 {[%emt 0:00:05]} 13. dxe5 {[%emt 0:00:49]} Nxe5 {[%emt 0:00:11]} 14. Nxe5 {[%emt 0:13:50]} Bxe5 {[%emt 0:00:05]} 15. f4 {[%emt 0:00:05]} Bxc3 {[%emt 0:01:29]} 16. bxc3 {[%emt 0:00:06]} Re8 {[%emt 0:00:02]} 17. Qd3 {[%emt 0:01:18]} Ng4 {[%emt 0:06:23]} 18. Ba3 {[%emt 0:00:50]} c5 {[%emt 0:04:20]} 19. h3 {[%emt 0:05:00]} c4 {[%emt 0:01:58]} 20. Qd4 {[%emt 0:00:04]} Nh6 {[%emt 0:01:33]} 21. Bd6 {[%emt 0:07:42]} Qc8 {[%emt 0:00:14]} 22. g4 {[%emt 0:01:46]} f6 {[%emt 0:06:33]} 23. e5 {[%emt 0:02:57]} Bxg2 {[%emt 0:01:47]} 24. Kxg2 {[%emt 0:00:34]} Nf7 {[%emt 0:01:15]} 25. Qd5 {[%emt 0:00:08]} fxe5 {[%emt 0:05:29]} 26. fxe5 {[%emt 0:00:17]} Qe6 {[%emt 0:03:54]} 27. a4 {[%emt 0:00:07]} Rad8 {[%emt 0:02:01]} 28. axb5 {[%emt 0:01:23]} axb5 {[%emt 0:00:44]} 29. Ra6 {[%emt 0:02:09]} h5 {[%emt 0:07:59]} 30. Qxe6 {[%emt 0:02:33]} Rxe6 {[%emt 0:00:28]} 31. Rd5 {[%emt 0:03:19]} hxg4 {[%emt 0:00:46]} 32. hxg4 {[%emt 0:00:04]} Nxe5 {[%emt 0:00:31]} 33. Rxe5 {[%emt 0:06:15]} Rexd6 {[%emt 0:00:07]} 34. Rxd6 {[%emt 0:03:51]} Rxd6 {[%emt 0:00:05]} 35. Rxb5 {[%emt 0:00:04]} Rd3 {[%emt 0:00:20]} 36. Rc5 {[%emt 0:01:26]} Rxc3 {[%emt 0:00:06]} 37. Rc7 {[%emt 0:00:21]} Kh7 {[%emt 0:05:33]} 38. Rc6 {[%emt 0:00:05]} g5 {[%emt 0:00:28]} 39. Rc5 {[%emt 0:01:57]} Kg6 {[%emt 0:00:47]} 40. Kf2 {[%emt 0:00:24]} Rc1 {[%emt 0:04:06]} 41. Ke3 {[%emt 0:00:30]} c3 {[%emt 0:02:00]} 42. Rc6+ {[%emt 0:01:03]} Kf7 {[%emt 0:00:11]} 43. Kd3 {[%emt 0:01:30]} Rg1 {[%emt 0:04:10]} 44. Rxc3 {[%emt 0:01:03]} Rxg4 {[%emt 0:01:01]} 45. Rc6 {[%emt 0:00:04]} Rf4 {[%emt 0:00:49]} 46. Ke3 {[%emt 0:00:06]} Rf1 {[%emt 0:00:53]} 47. Ke2 {[%emt 0:00:16]} Rf5 {[%emt 0:00:07]} 48. Ke3 {[%emt 0:00:07]} Kg7 {[%emt 0:02:00]} 49. Ra6 {[%emt 0:00:23]} Kh7 {[%emt 0:01:27]} 50. Rb6 {[%emt 0:00:10]} Rf7 {[%emt 0:00:24]} 51. Ra6 {[%emt 0:00:08]} Rf5 {[%emt 0:01:37]} 52. Rb6 {[%emt 0:00:09]} Kg8 {[%emt 0:00:35]} 53. Rb7 {[%emt 0:00:38]} Kf8 {[%emt 0:00:23]} 54. Ke4 {[%emt 0:00:23]} Rf4+ {[%emt 0:00:33]} 55. Ke3 {[%emt 0:00:05]} Rf1 {[%emt 0:02:53]} 56. Ke2 {[%emt 0:00:56]} Rf7 {[%emt 0:00:37]} 57. Rxf7+ {[%emt 0:00:51]} Kxf7 {[%emt 0:00:05]} 58. Kf3 {[%emt 0:00:03]} Ke6 {[%emt 0:00:06]} 59. Kg4 {[%emt 0:00:08]} Kf6 {[%emt 0:00:04]} 60. Kg3 {[%emt 0:00:03]} Kg7 {[%emt 0:00:05]} 61. Kg4 {[%emt 0:00:09]} Kh6 {[%emt 0:00:22]} 62. Kg3 {[%emt 0:00:03]} Kh5 {[%emt 0:00:05]} 63. Kh3 {[%emt 0:00:03]} Kg6 {[%emt 0:00:05]} 64. Kg4 {[%emt 0:00:03]} Kf6 {[%emt 0:08:21]} 65. Kg3 {[%emt 0:00:04]} Kf5 {[%emt 0:00:03]} 66. Kf3 {[%emt 0:00:03]} g4+ {[%emt 0:00:07]} 67. Kg3 {[%emt 0:00:03]} Kg5 {[%emt 0:00:04]} 68. Kg2 {[%emt 0:00:04]} Kg6 {[%emt 0:00:03]} 69. Kg3 {[%emt 0:00:04]} Kf5 {[%emt 0:00:04]} 70. Kg2 {[%emt 0:00:07]} Kf4 {[%emt 0:04:52]} 71. Kf2 {[%emt 0:00:04]} g3+ {[%emt 0:03:30]} 72. Kg2 {[%emt 0:00:03]} Kg4 {[%emt 0:00:04]} 73. Kg1 {[%emt 0:00:04]} Kh3 {[%emt 0:00:04]} 74. Kh1 {[%emt 0:00:05]} Kh4 {[%emt 0:00:04]} 75. Kg2 {[%emt 0:00:03]} Kg4 {[%emt 0:00:03]} 76. Kg1 {[%emt 0:00:03]} Kg5 {[%emt 0:00:20]} 77. Kg2 {[%emt 0:00:06]} Kf4 {[%emt 0:02:58]} 78. Kg1 {[%emt 0:00:05]} Ke5 {[%emt 0:00:03]} 79. Kg2 {[%emt 0:00:06]} Kf4 {[%emt 0:00:06]} 80. Kg1 {[%emt 0:00:02]} Kf3 {[%emt 0:00:04]} 81. Kf1 {[%emt 0:00:04]} g2+ {[%emt 0:05:34]} 82. Kg1 {[%emt 0:00:04]} Kg3 {[%emt 0:00:04]} 1/2-1/2

[Event "12th Chennai Open 2020"]
[Site "Chennai"]
[Date "2020.01.19"]
[Round "2.18"]
[White "Vignesh N"]
[Black "Vignesh N R"]
[Result "0-1"]
[ECO "B80"]
[WhiteElo "1934"]
[BlackElo "2472"]
[Annotator "ChessBase"]
[PlyCount "86"]
[EventDate "2020.01.19"]
[EventType "swiss"]
[EventCountry "IND"]
[SourceTitle "playchess.com"]
[Source "ChessBase"]
[SourceQuality "1"]
[TimeControl "5400+30"]

1. e4 {[%emt 0:00:00]} c5 {[%emt 0:00:53]} 2. Nf3 {[%emt 0:00:00]} d6 {[%emt 0:00:06]} 3. d4 {[%emt 0:00:00]} cxd4 {[%emt 0:00:06]} 4. Nxd4 {[%emt 0:00:04]} Nf6 {[%emt 0:00:03]} 5. Nc3 {[%emt 0:00:11]} a6 {[%emt 0:00:25]} 6. g3 {[%emt 0:00:40]} e6 {[%emt 0:01:23]} 7. Bg2 {[%emt 0:00:14]} Be7 {[%emt 0:00:03]} 8. O-O {[%emt 0:00:17]} Qc7 {[%emt 0:00:04]} 9. h3 {[%emt 0:04:33]} O-O {[%emt 0:00:09]} 10. g4 {[%emt 0:01:07]} Nc6 {[%emt 0:00:08]} 11. Kh1 {[%emt 0:06:15]} Nd7 {[%emt 0:01:24]} 12. f4 {[%emt 0:02:57]} Nxd4 {[%emt 0:03:12]} 13. Qxd4 {[%emt 0:00:26]} b6 {[%emt 0:01:11]} 14. g5 {[%emt 0:05:06]} Re8 {[%emt 0:00:19]} 15. f5 {[%emt 0:02:57]} Bb7 {[%emt 0:05:22]} 16. f6 {[%emt 0:07:26]} Bf8 {[%emt 0:00:39]} 17. Be3 {[%emt 0:01:30]} Rac8 {[%emt 0:00:57]} 18. Rad1 {[%emt 0:02:43]} g6 {[%emt 0:06:00]} 19. h4 {[%emt 0:00:55]} Qc4 {[%emt 0:06:50]} 20. Qd2 {[%emt 0:12:41]} b5 {[%emt 0:00:21]} 21. Qf2 {[%emt 0:17:27]} Qc6 {[%emt 0:22:13]} 22. h5 {[%emt 0:20:20]} Ne5 {[%emt 0:01:55]} 23. Bd4 {[%emt 0:01:45]} gxh5 {[%emt 0:01:29]} 24. Bxe5 {[%emt 0:05:45]} dxe5 {[%emt 0:00:01]} 25. Rd3 {[%emt 0:00:09]} b4 {[%emt 0:00:44]} 26. Qh4 {[%emt 0:03:19]} bxc3 {[%emt 0:00:35]} 27. Qxh5 {[%emt 0:00:09]} Qxe4 {[%emt 0:01:21]} 28. Bxe4 {[%emt 0:00:56]} Bxe4+ {[%emt 0:00:01]} 29. Kh2 {[%emt 0:03:14]} Bxd3 {[%emt 0:02:13]} 30. cxd3 {[%emt 0:00:05]} cxb2 {[%emt 0:00:02]} 31. g6 {[%emt 0:01:23]} hxg6 {[%emt 0:00:09]} 32. Rg1 {[%emt 0:00:18]} Rc7 {[%emt 0:09:51]} 33. Qxe5 {[%emt 0:00:15]} Rc2+ {[%emt 0:00:50]} 34. Kh3 {[%emt 0:00:14]} Rc1 {[%emt 0:01:17]} 35. Rxg6+ {[%emt 0:01:35]} fxg6 {[%emt 0:00:02]} 36. Qxb2 {[%emt 0:00:10]} Rc7 {[%emt 0:00:15]} 37. Kg4 {[%emt 0:00:17]} Rd7 {[%emt 0:01:54]} 38. Qh2 {[%emt 0:00:48]} Red8 {[%emt 0:00:34]} 39. Kg5 {[%emt 0:00:15]} Rh7 {[%emt 0:00:14]} 40. f7+ {[%emt 0:00:59]} Rxf7 {[%emt 0:00:19]} 41. Kxg6 {[%emt 0:00:06]} Rd5 {[%emt 0:02:21]} 42. a4 {[%emt 0:00:56]} Rdf5 {[%emt 0:00:11]} 43. Qh4 {[%emt 0:00:10]} Rg7+ {[%emt 0:00:13]} 0-1

[Event "12th Chennai Open 2020"]
[Site "Chennai"]
[Date "2020.01.19"]
[Round "3.1"]
[White "Ponkratov, Pavel"]
[Black "Pranesh M"]
[Result "1-0"]
[ECO "C67"]
[WhiteElo "2622"]
[BlackElo "2317"]
[Annotator "ChessBase"]
[PlyCount "97"]
[EventDate "2020.01.19"]
[EventType "swiss"]
[EventCountry "IND"]
[SourceTitle "playchess.com"]
[Source "ChessBase"]
[SourceQuality "1"]
[TimeControl "5400+30"]

1. e4 {[%emt 0:00:00]} e5 {[%emt 0:00:29]} 2. Nf3 {[%emt 0:00:00]} Nc6 {[%emt 0:00:08]} 3. Bb5 {[%emt 0:00:00]} Nf6 {[%emt 0:00:07]} 4. O-O {[%emt 0:00:00]} Nxe4 {[%emt 0:00:03]} 5. d4 {[%emt 0:00:00]} Nd6 {[%emt 0:00:04]} 6. dxe5 {[%emt 0:00:01]} Nxb5 {[%emt 0:00:04]} 7. a4 {[%emt 0:00:03]} Nbd4 {[%emt 0:00:04]} 8. Nxd4 {[%emt 0:00:04]} Nxd4 {[%emt 0:00:03]} 9. Qxd4 {[%emt 0:00:05]} d5 {[%emt 0:00:04]} 10. c4 {[%emt 0:00:11]} dxc4 {[%emt 0:00:34]} 11. Qxc4 {[%emt 0:00:04]} Be6 {[%emt 0:01:27]} 12. Qb5+ {[%emt 0:05:11]} Qd7 {[%emt 0:01:31]} 13. Nc3 {[%emt 0:00:03]} c6 {[%emt 0:04:32]} 14. Qe2 {[%emt 0:00:07]} Qd4 {[%emt 0:02:18]} 15. a5 {[%emt 0:10:24]} Qg4 {[%emt 0:08:43]} 16. Qe3 {[%emt 0:05:22]} Be7 {[%emt 0:05:07]} 17. f4 {[%emt 0:01:34]} Qg6 {[%emt 0:10:30]} 18. Qf2 {[%emt 0:03:56]} Bf5 {[%emt 0:06:22]} 19. Be3 {[%emt 0:00:43]} O-O {[%emt 0:02:22]} 20. Bxa7 {[%emt 0:02:05]} f6 {[%emt 0:02:31]} 21. Bc5 {[%emt 0:06:42]} Rae8 {[%emt 0:02:38]} 22. Bxe7 {[%emt 0:05:05]} Rxe7 {[%emt 0:00:06]} 23. Qc5 {[%emt 0:00:21]} Rfe8 {[%emt 0:00:19]} 24. Rae1 {[%emt 0:01:05]} h5 {[%emt 0:05:41]} 25. Rf3 {[%emt 0:03:57]} Rd7 {[%emt 0:05:23]} 26. Rg3 {[%emt 0:06:44]} Qh6 {[%emt 0:03:20]} 27. Qc4+ {[%emt 0:02:44]} Be6 {[%emt 0:05:11]} 28. Qf1 {[%emt 0:00:28]} f5 {[%emt 0:03:13]} 29. Rg5 {[%emt 0:02:42]} h4 {[%emt 0:03:30]} 30. h3 {[%emt 0:06:28]} Red8 {[%emt 0:02:21]} 31. Qf2 {[%emt 0:00:18]} Rd2 {[%emt 0:03:33]} 32. Re2 {[%emt 0:06:52]} R2d4 {[%emt 0:01:08]} 33. Qe3 {[%emt 0:06:28]} Kf7 {[%emt 0:01:19]} 34. Kh2 {[%emt 0:01:19]} R8d7 {[%emt 0:01:17]} 35. Rc2 {[%emt 0:03:23]} Rd3 {[%emt 0:02:40]} 36. Qf2 {[%emt 0:00:18]} R3d4 {[%emt 0:02:28]} 37. Ne2 {[%emt 0:00:48]} Ra4 {[%emt 0:02:09]} 38. b4 {[%emt 0:02:07]} Rxb4 {[%emt 0:01:09]} 39. a6 {[%emt 0:00:08]} bxa6 {[%emt 0:00:35]} 40. Rxc6 {[%emt 0:00:33]} Rb2 {[%emt 0:00:55]} 41. Qe3 {[%emt 0:02:16]} Rdd2 {[%emt 0:02:19]} 42. Qa7+ {[%emt 0:00:44]} Rd7 {[%emt 0:00:33]} 43. Qxa6 {[%emt 0:01:25]} Rdd2 {[%emt 0:01:48]} 44. Qa7+ {[%emt 0:01:37]} Rd7 {[%emt 0:00:32]} 45. Rc7 {[%emt 0:02:10]} Rbd2 {[%emt 0:02:00]} 46. Rxd7+ {[%emt 0:00:17]} Rxd7 {[%emt 0:00:16]} 47. Qb6 {[%emt 0:00:55]} g6 {[%emt 0:01:35]} 48. Nd4 {[%emt 0:00:24]} Re7 {[%emt 0:00:01]} 49. Nc6 {[%emt 0:00:33]} 1-0

[Event "12th Chennai Open 2020"]
[Site "Chennai"]
[Date "2020.01.19"]
[Round "3.2"]
[White "Saravanan, V.."]
[Black "Martinez Alcantara, Jose Eduardo"]
[Result "0-1"]
[ECO "A31"]
[WhiteElo "2325"]
[BlackElo "2606"]
[Annotator "ChessBase"]
[PlyCount "48"]
[EventDate "2020.01.19"]
[EventType "swiss"]
[EventCountry "IND"]
[SourceTitle "playchess.com"]
[Source "ChessBase"]
[SourceQuality "1"]
[TimeControl "5400+30"]

1. Nf3 {[%emt 0:04:25]} c5 {[%emt 0:00:00]} 2. c4 {[%emt 0:00:10]} Nc6 {[%emt 0:00:00]} 3. d4 {[%emt 0:00:06]} cxd4 {[%emt 0:00:00]} 4. Nxd4 {[%emt 0:00:08]} Nf6 {[%emt 0:00:00]} 5. g3 {[%emt 0:00:11]} Qb6 {[%emt 0:00:00]} 6. Nc2 {[%emt 0:00:30]} h5 {[%emt 0:00:42]} 7. Bg2 {[%emt 0:04:55]} h4 {[%emt 0:00:41]} 8. O-O {[%emt 0:00:08]} hxg3 {[%emt 0:01:48]} 9. hxg3 {[%emt 0:00:05]} Qc5 {[%emt 0:10:35]} 10. e4 {[%emt 0:04:35]} d6 {[%emt 0:03:14]} 11. Be3 {[%emt 0:00:26]} Qxc4 {[%emt 0:19:39]} 12. Nc3 {[%emt 0:02:07]} Bh3 {[%emt 0:04:31]} 13. Bxh3 {[%emt 0:05:25]} Rxh3 {[%emt 0:00:03]} 14. Na3 {[%emt 0:00:09]} Qe6 {[%emt 0:01:29]} 15. Nab5 {[%emt 0:03:17]} Rc8 {[%emt 0:04:33]} 16. Qa4 {[%emt 0:10:24]} Rh5 {[%emt 0:02:53]} 17. Kg2 {[%emt 0:04:22]} a6 {[%emt 0:07:43]} 18. Na7 {[%emt 0:05:19]} Ra5 {[%emt 0:14:14]} 19. Qb3 {[%emt 0:05:46]} Qxb3 {[%emt 0:01:48]} 20. axb3 {[%emt 0:00:07]} Rxa1 {[%emt 0:00:02]} 21. Rxa1 {[%emt 0:00:10]} Nxa7 {[%emt 0:00:05]} 22. Bxa7 {[%emt 0:00:09]} e6 {[%emt 0:06:01]} 23. Bd4 {[%emt 0:01:38]} Nd7 {[%emt 0:00:21]} 24. b4 {[%emt 0:00:15]} Rc4 {[%emt 0:00:44]} 0-1

[Event "12th Chennai Open 2020"]
[Site "Chennai"]
[Date "2020.01.19"]
[Round "3.3"]
[White "Saravana, Krishnan P."]
[Black "Aleksandrov, Aleksej"]
[Result "1-0"]
[ECO "C95"]
[WhiteElo "2313"]
[BlackElo "2592"]
[Annotator "ChessBase"]
[PlyCount "103"]
[EventDate "2020.01.19"]
[EventType "swiss"]
[EventCountry "IND"]
[SourceTitle "playchess.com"]
[Source "ChessBase"]
[SourceQuality "1"]
[TimeControl "5400+30"]

1. e4 {[%emt 0:00:00]} e5 {[%emt 0:01:32]} 2. Nf3 {[%emt 0:00:00]} Nc6 {[%emt 0:00:16]} 3. Bb5 {[%emt 0:00:36]} a6 {[%emt 0:00:10]} 4. Ba4 {[%emt 0:00:46]} Nf6 {[%emt 0:00:06]} 5. O-O {[%emt 0:01:09]} Be7 {[%emt 0:00:08]} 6. Re1 {[%emt 0:00:46]} b5 {[%emt 0:00:08]} 7. Bb3 {[%emt 0:00:07]} d6 {[%emt 0:00:11]} 8. c3 {[%emt 0:00:59]} O-O {[%emt 0:00:05]} 9. h3 {[%emt 0:00:48]} Nb8 {[%emt 0:00:17]} 10. d4 {[%emt 0:01:06]} Nbd7 {[%emt 0:00:04]} 11. c4 {[%emt 0:00:07]} c6 {[%emt 0:00:13]} 12. Qc2 {[%emt 0:03:07]} Nh5 {[%emt 0:17:14]} 13. a3 {[%emt 0:04:47]} Bb7 {[%emt 0:12:38]} 14. Nc3 {[%emt 0:02:04]} Rc8 {[%emt 0:16:11]} 15. Be3 {[%emt 0:06:46]} g6 {[%emt 0:00:09]} 16. Bh6 {[%emt 0:09:27]} Ng7 {[%emt 0:00:30]} 17. Rad1 {[%emt 0:00:30]} Qc7 {[%emt 0:00:30]} 18. Qd2 {[%emt 0:00:30]} Nb6 {[%emt 0:00:30]} 19. cxb5 {[%emt 0:00:30]} axb5 {[%emt 0:00:30]} 20. Bg5 {[%emt 0:00:30]} Nc4 {[%emt 0:28:11]} 21. Qe2 {[%emt 0:28:08]} Bxg5 {[%emt 0:00:30]} 22. Nxg5 {[%emt 0:00:30]} exd4 {[%emt 0:08:41]} 23. Rxd4 {[%emt 0:01:29]} Qe7 {[%emt 0:00:30]} 24. Bxc4 {[%emt 0:00:30]} Qxg5 {[%emt 0:00:30]} 25. Ba2 {[%emt 0:00:30]} Rfd8 {[%emt 0:00:30]} 26. Red1 {[%emt 0:00:30]} Ne8 {[%emt 0:00:30]} 27. R4d3 {[%emt 0:00:30]} Kg7 {[%emt 0:00:30]} 28. b4 {[%emt 0:00:30]} f6 {[%emt 0:00:30]} 29. Qb2 {[%emt 0:00:30]} Qe5 {[%emt 0:00:30]} 30. Qb3 {[%emt 0:00:30]} Qe7 {[%emt 0:00:30]} 31. h4 {[%emt 0:00:30]} Nc7 {[%emt 0:00:30]} 32. h5 {[%emt 0:00:30]} c5 {[%emt 0:00:30]} 33. Qb2 {[%emt 0:00:30]} c4 {[%emt 0:00:30]} 34. Re3 {[%emt 0:00:30]} Qe5 {[%emt 0:00:30]} 35. hxg6 {[%emt 0:00:30]} hxg6 {[%emt 0:00:30]} 36. Qd2 {[%emt 0:00:30]} Ne6 {[%emt 0:00:30]} 37. Rg3 {[%emt 0:00:30]} Rd7 {[%emt 0:00:30]} 38. Bb1 {[%emt 0:00:30]} Rh8 {[%emt 0:00:30]} 39. Nd5 {[%emt 0:00:30]} Rh4 {[%emt 0:00:30]} 40. Ne3 {[%emt 0:00:30]} c3 {[%emt 0:00:30]} 41. Nf5+ {[%emt 0:00:30]} Kh7 {[%emt 0:00:30]} 42. Qe3 {[%emt 0:00:30]} gxf5 {[%emt 0:00:30]} 43. exf5 {[%emt 0:36:19]} Qxe3 {[%emt 0:10:45]} 44. fxe6+ {[%emt 0:00:08]} Kh6 {[%emt 0:01:09]} 45. Rxe3 {[%emt 0:01:00]} Rg7 {[%emt 0:00:25]} 46. f3 {[%emt 0:00:27]} Rc4 {[%emt 0:00:04]} 47. e7 {[%emt 0:00:27]} Bc6 {[%emt 0:01:35]} 48. Bc2 {[%emt 0:00:09]} Be8 {[%emt 0:00:20]} 49. Rxd6 {[%emt 0:00:09]} Rc7 {[%emt 0:00:46]} 50. Rxf6+ {[%emt 0:00:08]} Kg5 {[%emt 0:00:04]} 51. Rf8 {[%emt 0:00:46]} Rc8 {[%emt 0:00:04]} 52. Re5+ {[%emt 0:00:11]} 1-0

[Event "12th Chennai Open 2020"]
[Site "Chennai"]
[Date "2020.01.19"]
[Round "3.4"]
[White "Goganov, Aleksey"]
[Black "Srihari L R"]
[Result "1/2-1/2"]
[ECO "A35"]
[WhiteElo "2583"]
[BlackElo "2302"]
[Annotator "ChessBase"]
[PlyCount "72"]
[EventDate "2020.01.19"]
[EventType "swiss"]
[EventCountry "IND"]
[SourceTitle "playchess.com"]
[Source "ChessBase"]
[SourceQuality "1"]
[TimeControl "5400+30"]

1. d4 {[%emt 0:01:19]} d6 {[%emt 0:00:00]} 2. Nf3 {[%emt 0:00:39]} g6 {[%emt 0:00:00]} 3. c4 {[%emt 0:00:15]} Bg7 {[%emt 0:00:06]} 4. Nc3 {[%emt 0:00:11]} Bg4 {[%emt 0:01:09]} 5. e3 {[%emt 0:00:21]} c5 {[%emt 0:00:28]} 6. Be2 {[%emt 0:01:47]} cxd4 {[%emt 0:02:45]} 7. exd4 {[%emt 0:03:49]} Nc6 {[%emt 0:00:41]} 8. O-O {[%emt 0:04:18]} Nh6 {[%emt 0:07:47]} 9. d5 {[%emt 0:09:56]} Bxf3 {[%emt 0:00:22]} 10. Bxf3 {[%emt 0:00:05]} Ne5 {[%emt 0:00:22]} 11. Be2 {[%emt 0:03:12]} O-O {[%emt 0:11:15]} 12. f4 {[%emt 0:06:26]} Qb6+ {[%emt 0:04:13]} 13. Kh1 {[%emt 0:00:09]} Nd7 {[%emt 0:00:06]} 14. g4 {[%emt 0:01:11]} f5 {[%emt 0:03:15]} 15. g5 {[%emt 0:00:26]} Nf7 {[%emt 0:05:00]} 16. a4 {[%emt 0:12:52]} Nc5 {[%emt 0:10:19]} 17. a5 {[%emt 0:00:47]} Qc7 {[%emt 0:02:55]} 18. Ra3 {[%emt 0:04:55]} Bxc3 {[%emt 0:03:28]} 19. Rxc3 {[%emt 0:02:49]} Qxa5 {[%emt 0:00:24]} 20. Rh3 {[%emt 0:07:31]} Ne4 {[%emt 0:01:40]} 21. Bd3 {[%emt 0:15:28]} b5 {[%emt 0:12:37]} 22. Bxe4 {[%emt 0:04:58]} fxe4 {[%emt 0:00:11]} 23. Qg4 {[%emt 0:08:53]} Qc7 {[%emt 0:17:02]} 24. b3 {[%emt 0:00:54]} Qc8 {[%emt 0:01:22]} 25. f5 {[%emt 0:03:02]} Ne5 {[%emt 0:01:13]} 26. Qh4 {[%emt 0:00:55]} h5 {[%emt 0:08:27]} 27. gxh6 {[%emt 0:00:05]} Rxf5 {[%emt 0:00:05]} 28. Rg1 {[%emt 0:01:04]} Kh7 {[%emt 0:01:15]} 29. Bb2 {[%emt 0:01:17]} Qf8 {[%emt 0:00:51]} 30. Qxe4 {[%emt 0:00:31]} Rf4 {[%emt 0:04:32]} 31. Qb1 {[%emt 0:00:31]} Qf5 {[%emt 0:00:05]} 32. Qxf5 {[%emt 0:00:57]} Rxf5 {[%emt 0:00:05]} 33. c5 {[%emt 0:00:50]} dxc5 {[%emt 0:00:51]} 34. Re3 {[%emt 0:01:11]} Nf7 {[%emt 0:00:18]} 35. Rxe7 {[%emt 0:00:19]} Rd8 {[%emt 0:01:12]} 36. Rxa7 {[%emt 0:01:05]} Rdxd5 {[%emt 0:00:15]} 1/2-1/2